Cogmind - Beta 16.1 @@@ ROGUE MODE // 2026.02.15 @ 18:52:28 Player: potator Result: Destroyed by S-10 Pest with Light Assault Rifle Performance ------------- Evolutions (0) 0 Regions Visited (2) 400 Robots Destroyed (22) 110 Value Destroyed (359) 359 Prototype IDs (0) 0 Alien Tech Used (0) 0 Bonus (0) 0 TOTAL SCORE: 869 Bonus ------- None Cogmind --------- Core Integrity 0/250 Matter 300/300 Energy 100/100 System Corruption 0% Temperature Cool (0) Movement Core (150) Ox2 Location -10/Subcaves Parts ------- > --- POWER (1) -------- (None) > --- PROPULSION (2) --- (None) > --- UTILITY (2) ------ Heat Sink Small Storage Unit > --- WEAPON (2) ------- Medium Laser > --- INVENTORY (8) ---- Subdweller Power Source ECM Suite Assault Rifle Assault Rifle Grenade Launcher Peak State ------------ > --- POWER ------------ Light Ion Engine > --- PROPULSION ------- Light Treads Light Treads > --- UTILITY ---------- Heat Sink Small Storage Unit > --- WEAPON ----------- Medium Laser Flamer > --- INVENTORY -------- ECM Suite Medium Laser Medium Laser Assault Rifle Assault Rifle Grenade Launcher [Rating: 8] Favorites ----------- Power Light Ion Engine Engine Light Ion Engine Propulsion Light Treads Treads Light Treads Utility Small Storage Unit Device Heat Sink Storage Small Storage Unit Weapon Medium Laser Energy Gun Medium Laser Special Weapon Flamer Build | -11 -10 -10 ------- Run | Yrd Mat Sub Slots Evolved . | . . . Power . | . . . Propulsion . | . . . Utility . | . . . Weapon . | . . . Parts Attached 12 | 6 3 3 Power 4 | 1 1 2 Engine 4 | 1 1 2 Core . | . . . Reactor . | . . . Propulsion 2 | 2 . . Treads 2 | 2 . . Leg . | . . . Wheel . | . . . Hover . | . . . Flight . | . . . Utility 2 | 1 1 . Device 1 | . 1 . Storage 1 | 1 . . Processor . | . . . Hackware . | . . . Protection . | . . . Artifact . | . . . Weapon 4 | 2 1 1 Energy Gun 3 | 2 1 . Energy Cannon . | . . . Ballistic Gun . | . . . Ballistic Cannon . | . . . Launcher . | . . . Special Weapon 1 | . . 1 Impact Weapon . | . . . Slashing Weapon . | . . . Piercing Weapon . | . . . Special Melee Weapon . | . . . Unidentified Prototypes . | . . . Parts Lost 6 | . . 6 Power 1 | . . 1 Propulsion 2 | . . 2 Utility . | . . . Weapon 3 | . . 3 Highest Loss Streak 4 | . . 4 To Critical Strikes . | . . . Average Backups 3 | 3 3 5 Power . | . . . Propulsion . | . . . Utility . | . . 1 Weapon 2 | 1 2 4 Tool/Special . | . . . Unused Backups 4 | . . 4 Power . | . . . Propulsion . | . . . Utility 1 | . . 1 Weapon 3 | . . 3 Tool/Special . | . . . Average Slot Usage (%) 95 | . 95 97 Engine 13 | . 14 13 Treads 27 | . 28 26 Device 10 | . 9 14 Storage 14 | . 14 14 Energy Gun 27 | . 28 25 Peak Build Rating 8 | 6 7 8 Average Rating 6 | 1 6 7 On Entrance 4 | . 6 7 Avg Prop Armor Cover (%) . | . . . Naked Turns . | . . . Heaviest Build 15 | 12 13 15 Greatest Support 40 | 40 40 40 Greatest Overweight (x) 2 | . . 2 Average Overweight (x) . | . . . Largest Inventory Capacity 8 | 8 8 8 Average Capacity 7 | 5 8 8 Most Carried 6 | 5 5 6 Average Carried 3 | 3 3 5 Final Capacity 8 | 8 8 8 Final Carried 5 | . 5 5 Class Distribution -------------------- 100% | Mutant Dominant Class ---------------- Mutant | -10/Materials Mutant | -10/Subcaves Resources | -11 -10 -10 ----------- Run | Yrd Mat Sub Matter Collected 345 | 205 65 75 Remotely . | . . . Salvage Created 440 | . 312 128 Parts 39 | . 29 10 Haulers Intercepted . | . . . Recyclers Shooed . | . . . Parts Field Recycled . | . . . Retrieved Matter . | . . . Parts Self-Destructed 11 | . . 11 Prevented . | . . . Parts Restored . | . . . Kills | -11 -10 -10 ------- Run | Yrd Mat Sub Combat Hostiles Destroyed 19 | . 12 7 Guns 19 | . 12 7 Classes Destroyed 5 | . 4 1 Builder 1 | . 1 . Watcher 2 | . 2 . Swarmer 14 | . 9 5 Grunt 3 | . 3 . Subdweller 2 | . . 2 Best Kill Streak 4 | . 4 3 Combat Bots Only 3 | . 3 3 Max Kills in Single Turn 2 | . 2 1 Gunslinging . | . . . Exploded . | . . . Melee . | . . . Uniques/NPCs Destroyed . | . . . Combat | -11 -10 -10 -------- Run | Yrd Mat Sub Hostile Shots Fired 161 | . 37 124 Missed 56 | . 4 52 Hits 105 | . 33 72 Projectile 105 | . 33 72 Damage Taken 932 | . 264 668 Core 253 | . 54 199 Absorbed by Shields . | . . . Core Remaining (%) 100 | 100 . . Volleys Fired 50 | . 32 18 Largest 2 | . 2 2 Hottest 150 | . 100 150 Shots Fired 97 | . 64 33 Gun 92 | . 64 28 Cannon . | . . . Launcher . | . . . Special 5 | . . 5 Kinetic . | . . . Thermal 97 | . 64 33 Explosive . | . . . Electromagnetic . | . . . Robot Hit Streak 8 | . 6 8 Robot Miss Streak 4 | . 3 4 Penetration Max . | . . . Secondary Targets 1 | . . 1 Max Gunslinging Chain 1 | . . 1 Shots Hit Robots 55 | . 39 16 Core Hits 29 | . 19 10 Critical Kills . | . . . Critical Parts Destroyed . | . . . Critical Strikes 6 | . 2 4 Burn 6 | . 2 4 Melee Attacks . | . . . Impact . | . . . Slashing . | . . . Piercing . | . . . Sneak Attacks . | . . . Combat Hostiles . | . . . Follow-up Attacks . | . . . Damage Inflicted 699 | . 503 196 Guns 654 | . 503 151 Cannons . | . . . Explosions . | . . . Melee . | . . . Ramming . | . . . Kinetic . | . . . Thermal 699 | . 503 196 Explosive . | . . . Electromagnetic . | . . . Impact . | . . . Slashing . | . . . Piercing . | . . . Highest Corruption . | . . . Average Corruption . | . . . Corruption Purged . | . . . Corruption Blocked . | . . . Overload Shots . | . . . Overflow Damage . | . . . Projectiles . | . . . Explosions . | . . . Melee . | . . . Knockbacks . | . . . Impact . | . . . Kinetic . | . . . Secondary . | . . . Self-Inflicted Damage . | . . . Shots . | . . . Rammed . | . . . Targets Rammed . | . . . Kicked . | . . . Crushed . | . . . Highest Temperature 174 | . 174 . Average Temperature 30 | . 30 . Received Heat Transfer 186 | . 24 162 Siege Activations . | . . . Martial Activations . | . . . Shielding Activations . | . . . Robots Disrupted . | . . . Combat Hostiles . | . . . Robots Corrupted . | . . . Combat Hostiles . | . . . Parts Fried . | . . . Impact Corruptions . | . . . Robots Melted . | . . . Combat Hostiles . | . . . Parts Melted 5 | . 4 1 Heat Transferred 2688 | . 1628 1060 Parts Sabotaged . | . . . Parts Stolen . | . . . Parts Stripped . | . . . Power Chain Reactions . | . . . Alert | -11 -10 -10 ------- Run | Yrd Mat Sub Maximum Alert Level . | . . . Low Security (%) 100 | 100 100 . Level 1 . | . . . Level 2 . | . . . Level 3 . | . . . Level 4 . | . . . Level 5 . | . . . High Security . | . . . Max Security . | . . . Peak Influence 136 | . 136 . Initial . | . . . Average 39 | . 39 . Influence Increases 619 | . 359 260 Destroy 0b10 Robot/C 340 | . 240 100 Destroy 0b10 Robot/NC 15 | . 15 . Destroy Leader 64 | . 54 10 Successful Hack 4 | . 4 . Destroy Structure 1 | . 1 . Lose Combat Pursuer 195 | . 45 150 Influence Decreases 433 | . 296 137 Entered New Map 31 | . . 31 Time Decay 352 | . 296 56 Lost Part 50 | . . 50 Squads Dispatched 4 | . 4 . Investigation 3 | . 3 . Extermination . | . . . Reinforcement 1 | . 1 . Assault . | . . . Garrison . | . . . Intercept . | . . . Searches Triggered . | . . . Construction Impeded . | . . . Haulers Reinforced . | . . . Active Scanning Responses . | . . . Cargo Convoy Interrupts . | . . . Stealth | -11 -10 -10 --------- Run | Yrd Mat Sub Distress Signals 2 | . 2 . Communications Jammed . | . . . Distress Signals . | . . . Times Spotted 35 | . 17 18 Peak Tracking Total 6 | . 4 6 Tactical Retreats 6 | . 2 4 Traps | -11 -10 -10 ------- Run | Yrd Mat Sub Traps Triggered 3 | . 2 1 Indirectly . | . . . Trap Hack Attempts . | . . . Triggered . | . . . Disarmed . | . . . Reprogrammed . | . . . Reused . | . . . Traps Extracted . | . . . Installed . | . . . Triggered . | . . . Machines | -11 -10 -10 ---------- Run | Yrd Mat Sub Machines Disabled . | . . . Max in Single Turn . | . . . Machines Repaired . | . . . Machines Dismantled . | . . . Machines Sabotaged . | . . . Overloaded Fab Kills . | . . . Hacking | -11 -10 -10 --------- Run | Yrd Mat Sub Machines Accessed 5 | . 5 . Terminals 5 | . 5 . Fabricators . | . . . Repair Stations . | . . . Recycling Units . | . . . Scanalyzers . | . . . Garrison Access . | . . . Total Hacks 14 | . 14 . Successful 7 | . 7 . Failed 7 | . 7 . Catastrophic 1 | . 1 . Database Lockouts . | . . . Manual . | . . . Terminals 14 | . 14 . Fabricators . | . . . Repair Stations . | . . . Recycling Units . | . . . Scanalyzers . | . . . Garrison Access . | . . . Terminal Hacks 7 | . 7 . Emergency Access Points 1 | . 1 . Alert Level 1 | . 1 . Locate Traps 2 | . 2 . Recall Investigation 1 | . 1 . Hauler Manifests 1 | . 1 . Zone Layout 1 | . 1 . Fabricator Hacks . | . . . Repair Station Hacks . | . . . Recycling Unit Hacks . | . . . Scanalyzer . | . . . Garrison Access Hacks . | . . . Unauthorized Hacks . | . . . Terminals . | . . . Fabricators . | . . . Repair Stations . | . . . Recycling Units . | . . . Scanalyzers . | . . . Garrison Access . | . . . Data Cores Recovered . | . . . Used . | . . . Hacking Detections 5 | . 5 . Full Trace Events 2 | . 2 . Feedback Events . | . . . Feedback Blocked . | . . . Robot Schematics Acquired . | . . . Robots Built . | . . . Authchips . | . . . Time . | . . . Total Robot Build Rating . | . . . Part Schematics Acquired . | . . . Parts Built . | . . . Authchips . | . . . Time . | . . . Total Part Build Rating . | . . . Part Studies Acquired . | . . . Parts Repaired . | . . . Time . | . . . Parts Recycled . | . . . Recycled Matter . | . . . Retrieved Matter . | . . . Retrieved Components . | . . . Parts Scanalyzed . | . . . Part Schematics Acquired . | . . . Parts Damaged . | . . . Bothacking | -11 -10 -10 ------------ Run | Yrd Mat Sub Used RIF Installer . | . . . Robots Hacked . | . . . Non-combat . | . . . Combat . | . . . Robot Hacks Applied . | . . . Relay Couplers Released . | . . . Fabnet Peak Effective % . | . . . Robots Rewired . | . . . Allies Hacked . | . . . Hacks Repelled . | . . . Allies | -11 -10 -10 -------- Run | Yrd Mat Sub Total Allies . | . . . Largest Group . | . . . Highest-Rated Group . | . . . Highest-Rated Ally . | . . . Total Orders . | . . . Ally Attacks . | . . . Total Damage . | . . . Kills . | . . . Allies Corrupted . | . . . Allies Melted . | . . . Intel | -11 -10 -10 ------- Run | Yrd Mat Sub Active Infowar (turns) . | . . . Robot Analysis Total . | . . . Derelict Logs Recovered 1 | . . 1 Drone Launches . | . . . Drone Recoveries . | . . . Exploration | -11 -10 -10 ------------- Run | Yrd Mat Sub Turns Passed 2641 | 40 1926 675 Spaces Moved 747 | 28 513 206 Core 19 | 15 . 4 Treads 728 | 13 513 202 Legs . | . . . Wheels . | . . . Hover . | . . . Flight . | . . . Fastest Speed 50 | 50 160 150 Average Speed 157 | 101 160 159 Slowest Speed 160 | 160 160 160 Overloaded Moves . | . . . Propulsion Burnouts . | . . . Robots Hopped . | . . . Potential Cave-ins . | . . . Cave-ins Triggered . | . . . Exploration Rate (%) 35 | 3 83 20 Regions Visited 2 Branch Regions 1 Pre-discovered Areas 1 | . . 1 Known Exits Taken . | . . . Unknown Exits Taken 2 | 1 1 . Scrap Searched . | . . . Spaces Dug . | . . . Terrain Destroyed . | . . . Melee . | . . . Projectile . | . . . AOE . | . . . Terrain Rammed . | . . . Walls Destroyed . | . . . Machines Disabled . | . . . Actions | -11 -10 -10 --------- Run | Yrd Mat Sub Total 2102 | 39 1554 509 Wait 1274 | 1 999 274 Move 745 | 27 512 206 Hop . | . . . Pick Up 15 | 5 7 3 Fast Attach 1 | 1 . . Attach 8 | 5 1 2 Detach . | . . . Swap 7 | . 2 5 Drop 2 | . 1 1 Fire 50 | . 32 18 Melee . | . . . Ram . | . . . Kick . | . . . Crush . | . . . Escape Stasis . | . . . Rewire . | . . . Trap . | . . . Miscellaneous . | . . . Route ------- -11/Scrapyard -10/Materials (discovered 4 exits: [*Mat x2] / [*Min] / [*Sub]) -10/Subcaves (discovered 1 exit: [*Rec]) History --------- Turn | Location | Event 2 | -11/Scrapyard | Met Revision 17 8 | -11/Scrapyard | Discovered new exit (range 15) 41 | -11/Scrapyard | Entered Materials 308 | -10/Materials | Build established: Mutant 983 | -10/Materials | Discovered new exit (range 5) 1718 | -10/Materials | Discovered new exit (range 10) 1849 | -10/Materials | Discovered new exit (range 16) 1956 | -10/Materials | Discovered new exit (range 8) 1967 | -10/Materials | Entered Subcaves 1969 | -10/Subcaves | Shifting Twisted Machinery released Flamer 2146 | -10/Subcaves | Learned location of Zion (-6) 2582 | -10/Subcaves | Core integrity fell below 50% 2629 | -10/Subcaves | Discovered new exit (range 14) 2640 | -10/Subcaves | Core integrity fell below 20% 2642 | -10/Subcaves | Destroyed by S-10 Pest with Light Assault Rifle Last Messages --------------- Switching to secondary target: S-10 Pest. S-10 Pest suffers critical hit (Destroy). S-10 Pest destroyed. S-10 Pest suffers critical hit (Burn). S-10 Pest destroyed. Subatomizers dissect the Lgt. Ion Engine. Lgt. Ion Engine fries itself beyond repair. Lgt. Assault Rifle fries itself beyond repair. S-10 Pest suffers critical hit (Burn). S-10 Pest destroyed. Lgt. Assault Rifle fries itself beyond repair. Lgt. Ion Engine fries itself beyond repair. Med. Laser destroyed. Acquired 5 matter. EXIT=FOUND Sub. Power Source destroyed. Acquired 5 matter. Med. Laser destroyed. Lgt. Treads destroyed. S-10 Pest destroyed. Map ----- +----------------------------------------------------+ | ???????????????????????????????????????????????? | | #???????????????????????????????????????????????? | | ?#??????????????????????????????????????????????? | | ##?????????????????????????????????????????????? | | ??????????????????????????????????????????????? | | ???????????????????????????????????????????????? | | ????????????????????????????????????????????????? | | #????????????????????????????????????????????????? | | ###??????????????????????????????????????????????? | | #?###?####?????????????????????????????????????? | | ### ## ##??????????? ??????????????????????? | | ## ##?????????? ??????? ??????????????? | | ## ### ???? #????? ????????????? | | ## ???# ????? ? ?????????? | | # #??## ????? ? ?????????? | | #?????# # ????# # ??????????? | | # #?????? ?#### # ???????????? | | ## ##### #?????? ?# % ???????????? | | ## ##??????? ??????# ?# #????????????? | | ### ###???????? ##????# #?# ^ #?? """??????? | | #??##?????????? ##???# ### #? "??????? | | ##?????????????# ##?### # "??????? | | ##????###????## ""### *%s% ""##????? | | ##???# ##??##""""" * %= <#????? | | ##?## #### " "" "% s% % t????????? | | ### #"# %@ ##??????????????? | | ###### & ^##?????????????? | | #?#### ##????????????? | | ## ### #### #????????????? | | ## ## ##### #????????????? | | ## ## #??## ##????????????? | | ## ###### ### ^ #??## #####?????????????? | | ###?# ##????##### ##??# ##?????????????????? | | ????###????????#^ ##???# #??????????????????? | | ???????????????# ##???# ##?????????????????? | | ???????????????## ##??## ##????????????????? | | ???????????????## ###### ##???????????????? | | ???????????????# ## ## ##??????????????? | | ???????????????# ## ##?????????????? | | ???????????????# #?????????????? | | ???????????????## ^ #?????????????? | | ????????????????### #?????????????? | | ???????????????##### ^ ## #?????????????? | | ??????????????## ## ^ ##?####?????????????? | | ??????????????# ^ #???????????????????? | | ??????????????# ## ^ #######?????????????? | | ??????????????## ### ## #?????????????? | | ???????????????## ###### #?????????????? | | ????????????????## #????## ##?????????????? | | ????????????????## ##?????#######??????????????? | +----------------------------------------------------+ Best States ------------- Heat Dissipation 35 Energy Generation 15 Energy Capacity 200 Matter Stores 300 Matter Capacity 300 Sight Range 16 Terrain Scan Density 10 Evasion (%) 50 Recoil Reduction 2 Item Schematics ----------------- None Robot Schematics ------------------ None Fabricated ------------ Nothing Repaired ---------- Nothing Studied --------- None Alien Tech Used ----------------- None Achievements -------------- You Again Challenges ------------ None Game ------ Seed DeflectorPrecisionCarapace Manual? 0 Play Time 00:14:06 Cumulative 28.5 hours Start 2026.02.15 @ 18:38:58 End 2026.02.15 @ 18:52:28 Sessions 1 Manual Loads 0 Difficulty Rogue Special Mode None Game No. 65 Rogue 65 Adventurer 0 Explorer 0 Win Type - Total 0 Types 0/0/0/0/0/0/0/0/0/0 Lore% 22 Gallery% 21 Achievement% 13 Wizard Run 0 Options --------- Layout 1 ASCII 0 Keyboard 0 Movement Mouse Keybinds 0 Fullscreen 2 Font 24/Smallcaps Map View 50x35 Zoom Use 0% Tactical HUD 0 Map Filters NONE Filters NONE Steam 1 RUN: b764cbcf-0b12-477e-817f-ae5d2606f7de